bitfinex-derivatives/quotes_SOLF0:USTF0_20241105
["timestamp","ask_amount","ask_price","bid_price","bid_amount"]
[1730792241842,7.61700227,161.47,161.42,7.61700227]
[1730792242054,7.61700227,161.47,161.45,3.0985]
[1730792242243,7.61700227,161.49,161.43,7.61700227]
[1730792242647,7.61700227,161.49,161.46,3.0983]
[1730792243159,10.71480227,161.49,161.45,3.0985]
[1730792245056,10.71480227,161.49,161.43,7.61700227]
[1730792245255,7.61700227,161.49,161.46,3.0984]
[1730792246657,0.0855,161.57,161.38,4.086]
[1730792246658,3.097,161.54,161.5,3.0976]
[1730792246857,7.61700227,161.51,161.46,2.74]
[1730792247261,7.61700227,161.5,161.46,2.74]
[1730792247858,7.61700227,161.5,161.48,3.0979]
[1730792248157,7.61700227,161.5,161.46,2.74]
[1730792248557,7.61700227,161.5,161.48,3.0979]
[1730792248956,7.61700227,161.5,161.46,10.35700227]
[1730792249164,7.61700227,161.5,161.49,3.0978]
[1730792249457,3.0972,161.53,161.46,10.35700227]
[1730792249662,7.61700227,161.52,161.5,3.0976]
[1730792249964,7.61700227,161.51,161.46,10.35700227]
[1730792251155,3.0973,161.52,161.49,3.0978]
[1730792251357,7.61700227,161.5,161.49,3.0978]
[1730792252857,7.61700227,161.5,161.47,3.0981]
[1730792253062,7.61700227,161.49,161.47,3.0981]
[1730792256564,7.61700227,161.48,161.46,2.74]
[1730792256761,7.61700227,161.48,161.46,5.8383]
[1730792257289,7.61700227,161.47,161.43,2.74]
[1730792257472,7.61700227,161.45,161.43,2.74]
[1730792257671,7.61700227,161.44,161.42,3.0991]
[1730792257965,7.61700227,161.43,161.38,5.4154]
[1730792258165,4.1158,161.5,161.35,1.4124]
[1730792258166,7.61700227,161.4,161.35,1.4124]
[1730792258366,7.61700227,161.4,161.36,2.74]
[1730792258969,7.61700227,161.4,161.38,3.0999]
[1730792263567,7.61700227,161.4,161.37,3.1001]
[1730792264271,7.61700227,161.4,161.36,2.74]
[1730792264465,7.61700227,161.4,161.38,3.0998]
[1730792267178,7.61700227,161.4,161.37,3.1001]
[1730792267472,7.61700227,161.38,161.35,2.74]
[1730792267672,7.61700227,161.38,161.35,5.8405]
[1730792269180,7.61700227,161.38,161.35,2.74]
[1730792269478,7.61700227,161.38,161.36,3.1003]
[1730792269683,3.0994,161.41,161.35,10.35700227]
[1730792269984,7.61700227,161.38,161.36,3.1002]
[1730792270279,7.61700227,161.38,161.35,2.74]
[1730792270478,7.61700227,161.38,161.35,5.8404]
[1730792271069,3.0997,161.4,161.35,5.8404]
[1730792271275,7.61700227,161.38,161.35,5.8404]
[1730792271971,7.61700227,161.38,161.36,3.1003]
[1730792277482,7.61700227,161.38,161.37,3.1001]
[1730792281787,7.61700227,161.38,161.32,2.6754]
[1730792281989,7.61700227,161.35,161.32,1.379]
[1730792282382,7.61700227,161.35,161.33,3.1007]
[1730792287987,7.61700227,161.35,161.31,8.36487253]
[1730792288184,7.61700227,161.35,161.32,3.101]
[1730792289289,7.61700227,161.33,161.31,5.62487253]
[1730792289488,7.61700227,161.32,161.31,5.62487253]
[1730792290392,7.61700227,161.32,161.31,8.72617253]
[1730792291088,1.3049,161.39,161.31,5.62487253]
[1730792291392,7.61700227,161.36,161.31,13.2418748]
[1730792292593,7.61700227,161.34,161.32,3.1011]
[1730792293298,7.61700227,161.34,161.33,3.1009]
[1730792294299,7.61700227,161.35,161.33,3.1008]
[1730792294503,1.3049,161.39,161.31,13.2418748]
[1730792294797,7.61700227,161.37,161.32,10.35700227]
[1730792294996,7.61700227,161.37,161.35,3.1004]
[1730792297792,7.61700227,161.36,161.35,3.1004]
[1730792298693,7.61700227,161.36,161.33,3.1007]
[1730792298895,7.61700227,161.34,161.33,3.1007]
[1730792306999,7.61700227,161.34,161.31,8.72607253]
[1730792307199,7.61700227,161.32,161.31,5.62487253]
[1730792314313,7.61700227,161.33,161.32,3.1011]
[1730792314606,7.61700227,161.36,161.31,13.2418748]
[1730792315215,7.61700227,161.36,161.35,3.1005]
[1730792315411,1.2818,161.45,161.33,10.35700227]
[1730792315715,7.61700227,161.38,161.37,3.1]
[1730792319517,3.0994,161.41,161.37,3.1]
[1730792319813,57.43106891,161.43,161.35,7.61700227]
[1730792320019,7.61700227,161.4,161.39,3.0996]
[1730792320416,3.0992,161.42,161.39,3.0996]
[1730792320614,7.61700227,161.4,161.39,3.0996]
[1730792320815,7.61700227,161.4,161.38,3.0999]
[1730792321005,7.61700227,161.39,161.38,3.0999]
[1730792321611,7.61700227,161.39,161.31,8.36487253]
[1730792321821,57.43106891,161.43,161.31,8.36487253]
[1730792321822,7.61700227,161.35,161.31,8.36487253]
[1730792322318,7.61700227,161.35,161.34,3.1007]
[1730792327223,57.43106891,161.43,161.34,3.1007]
[1730792327423,7.61700227,161.35,161.34,3.1007]
[1730792328818,7.61700227,161.35,161.31,8.36487253]
[1730792329015,7.61700227,161.35,161.33,3.1008]
[1730792329428,7.61700227,161.34,161.33,3.1008]
[1730792329821,7.61700227,161.34,161.31,8.36487253]
[1730792330019,7.61700227,161.33,161.32,3.101]
[1730792330925,7.61700227,161.33,161.31,8.72607253]
[1730792332122,7.61700227,161.33,161.32,3.1011]
[1730792333522,7.61700227,161.33,161.31,5.62487253]
[1730792333718,7.61700227,161.32,161.31,5.62487253]
[1730792337225,7.61700227,161.32,161.31,8.72617253]
[1730792337932,7.61700227,161.33,161.31,8.72617253]
[1730792338125,7.61700227,161.34,161.32,3.1011]
[1730792338326,7.61700227,161.34,161.31,5.62487253]
[1730792338733,7.61700227,161.34,161.32,3.101]
[1730792339227,7.61700227,161.33,161.32,3.101]
[1730792341028,7.61700227,161.33,161.31,5.62487253]
[1730792341331,7.61700227,161.32,161.31,5.62487253]
[1730792342637,7.61700227,161.32,161.31,8.72617253]
[1730792343834,7.61700227,161.32,161.31,5.62487253]
[1730792344031,7.61700227,161.32,161.25,2.74]
[1730792344235,7.61700227,161.26,161.24,4.0035]
[1730792344432,1.306,161.34,161.24,4.0035]
[1730792344647,7.61700227,161.28,161.24,4.0035]
[1730792345335,7.61700227,161.28,161.26,3.1021]
[1730792346630,7.61700227,161.27,161.25,3.1024]
[1730792349842,7.61700227,161.27,161.23,3.1027]
[1730792350144,7.61700227,161.26,161.22,2.74]
[1730792350347,7.61700227,161.26,161.24,3.1025]
[1730792353044,7.61700227,161.27,161.23,7.61700227]
[1730792353844,7.61700227,161.26,161.25,3.1024]
[1730792354442,7.61700227,161.26,161.24,3.1026]
[1730792354751,7.61700227,161.25,161.24,3.1026]
[1730792359051,7.61700227,161.26,161.24,3.1026]
[1730792359753,7.61700227,161.26,161.25,3.1024]
[1730792361555,7.61700227,161.27,161.23,7.61700227]
[1730792361753,7.61700227,161.28,161.23,7.61700227]
[1730792362149,7.61700227,161.28,161.25,3.1023]
[1730792364258,7.61700227,161.28,161.26,3.1022]
[1730792365161,5.8411,161.32,161.28,3.1018]
[1730792365454,54.72214714,161.34,161.26,7.61700227]
[1730792365657,7.61700227,161.31,161.29,3.1015]
[1730792368854,7.61700227,161.3,161.29,3.1015]
[1730792372060,54.72214714,161.34,161.28,7.61700227]
[1730792372061,7.61700227,161.32,161.28,7.61700227]
[1730792373361,7.61700227,161.32,161.3,3.1013]
[1730792374659,7.61700227,161.32,161.31,3.1013]
[1730792374859,2.7961,161.39,161.29,7.61700227]
[1730792375055,7.61700227,161.35,161.31,7.61700227]
[1730792375263,7.61700227,161.35,161.34,3.1007]
[1730792377961,7.61700227,161.36,161.34,3.1007]
[1730792378162,7.61700227,161.36,161.32,7.61700227]
[1730792378471,7.61700227,161.38,161.36,3.1002]
[1730792382268,7.61700227,161.37,161.36,3.1002]
[1730792382563,7.61700227,161.37,161.34,3.1007]
[1730792382769,7.61700227,161.35,161.34,3.1007]
[1730792384065,7.61700227,161.36,161.34,3.1007]
[1730792390764,7.61700227,161.35,161.31,2.6429]
[1730792392277,7.61700227,161.35,161.34,3.1007]
[1730792392467,7.61700227,161.35,161.3,1.324]
[1730792392772,7.61700227,161.34,161.3,4.064]
[1730792393274,7.61700227,161.34,161.32,3.1009]
[1730792393969,7.61700227,161.34,161.3,4.064]
[1730792394164,7.61700227,161.34,161.33,3.1009]
[1730792398377,7.61700227,161.34,161.3,4.064]
[1730792400278,7.61700227,161.34,161.33,3.1009]
[1730792400480,7.61700227,161.35,161.33,3.1009]
[1730792401189,7.61700227,161.36,161.33,3.1009]
[1730792401879,7.61700227,161.38,161.33,7.61700227]
[1730792402071,7.61700227,161.39,161.33,7.61700227]
[1730792402276,7.61700227,161.39,161.34,2.74]
[1730792403187,7.61700227,161.39,161.37,3.1]
[1730792406183,3.0992,161.42,161.35,7.61700227]
[1730792406184,7.61700227,161.4,161.38,3.0998]
[1730792406482,7.61700227,161.4,161.35,7.61700227]
[1730792406887,7.61700227,161.4,161.38,3.0998]
[1730792409987,7.61700227,161.39,161.38,3.0998]
[1730792410284,7.61700227,161.39,161.34,2.74]
[1730792410487,7.61700227,161.37,161.34,2.74]
[1730792411088,2.74,161.44,161.32,8.94160227]
[1730792411089,7.61700227,161.36,161.35,3.1003]
[1730792411285,7.61700227,161.36,161.33,2.74]
[1730792411694,7.61700227,161.36,161.34,3.1005]
[1730792411881,2.74,161.44,161.34,3.1005]
[1730792411882,7.61700227,161.35,161.34,3.1005]
[1730792413991,7.61700227,161.36,161.34,3.1005]
[1730792417492,2.74,161.4,161.31,11.71810227]
[1730792417682,7.61700227,161.37,161.32,7.61700227]
[1730792418493,7.61700227,161.37,161.35,3.1004]
[1730792419193,7.61700227,161.39,161.34,7.61700227]
[1730792419398,7.61700227,161.39,161.35,7.61700227]
[1730792419593,7.61700227,161.39,161.35,10.35700227]
[1730792419792,7.61700227,161.39,161.37,3.1]
[1730792421692,7.61700227,161.39,161.38,3.0999]
[1730792422799,7.61700227,161.39,161.36,3.1002]
[1730792422990,7.61700227,161.36,161.35,2.74]
[1730792423187,7.61700227,161.36,161.32,2.74]
[1730792423393,7.61700227,161.36,161.34,3.1006]
[1730792424189,7.61700227,161.36,161.35,3.1005]
[1730792424800,7.61700227,161.37,161.35,3.1005]
[1730792426298,3.0995,161.41,161.36,3.1002]
[1730792426505,7.61700227,161.39,161.33,7.61700227]
[1730792427299,7.61700227,161.39,161.37,3.1]
[1730792428218,3.0984,161.46,161.41,3.0992]
[1730792428418,7.61700227,161.44,161.39,7.61700227]
[1730792428607,7.61700227,161.43,161.38,7.61700227]
[1730792429108,7.61700227,161.43,161.4,3.0995]
[1730792429305,7.61700227,161.43,161.38,7.61700227]
[1730792429708,7.61700227,161.43,161.39,3.0996]
[1730792429899,7.61700227,161.43,161.38,7.61700227]
[1730792430401,3.0987,161.45,161.4,3.0994]
[1730792430606,7.61700227,161.42,161.4,3.0994]
[1730792431104,7.61700227,161.42,161.38,7.61700227]
[1730792431303,7.61700227,161.42,161.41,3.0994]
[1730792432412,2.74,161.48,161.38,7.61700227]
[1730792432605,7.61700227,161.43,161.38,7.61700227]
[1730792433799,3.0984,161.46,161.4,3.0994]
[1730792433994,7.61700227,161.43,161.38,7.61700227]
[1730792434807,7.61700227,161.43,161.39,3.0996]
[1730792435003,7.61700227,161.43,161.38,7.61700227]
[1730792435205,7.61700227,161.43,161.37,2.7584]
[1730792435405,7.61700227,161.41,161.39,3.0997]
[1730792435611,7.61700227,161.41,161.37,2.7584]
[1730792436206,7.61700227,161.41,161.39,3.0996]
[1730792437303,7.61700227,161.44,161.38,7.61700227]
[1730792437906,3.0985,161.46,161.41,3.0992]
[1730792438102,2.74,161.48,161.39,7.61700227]
[1730792438308,7.61700227,161.44,161.4,2.74]
[1730792438509,3.0984,161.47,161.41,3.0992]
[1730792438908,10.26122505,161.57,161.44,7.61700227]
[1730792439106,7.61700227,161.5,161.44,10.35700227]
[1730792439414,7.61700227,161.5,161.45,7.61700227]
[1730792439605,7.61700227,161.5,161.48,3.0978]
[1730792439806,2.74,161.55,161.45,8.90910227]
[1730792440001,7.61700227,161.51,161.45,8.90910227]
[1730792440604,7.61700227,161.51,161.49,3.0978]
[1730792441006,85.44988226,161.59,161.49,7.61700227]
[1730792441205,7.61700227,161.55,161.53,3.0969]
[1730792443400,3.096,161.59,161.53,3.0969]
[1730792443401,7.61700227,161.56,161.53,3.0969]
[1730792445021,16.07721752,161.64,161.58,3.096]
[1730792445221,7.61700227,161.62,161.58,3.096]
[1730792445416,7.61700227,161.62,161.57,10.35700227]
[1730792445606,7.61700227,161.62,161.58,7.61700227]
[1730792445811,7.61700227,161.62,161.59,3.0957]
[1730792446214,3.0953,161.63,161.58,7.61700227]
[1730792446413,7.61700227,161.62,161.58,7.61700227]
[1730792446809,12.98211752,161.64,161.59,7.61700227]
[1730792447014,12.98211752,161.64,161.61,7.61700227]
[1730792447215,12.98211752,161.64,161.61,10.35700227]
[1730792447409,12.98211752,161.64,161.61,13.45240227]
[1730792447609,12.98211752,161.64,161.61,10.35700227]
[1730792448014,12.98211752,161.64,161.61,13.45240227]
[1730792448819,20.59911979,161.64,161.61,13.45240227]
[1730792449414,7.61700227,161.63,161.61,2.74]
[1730792449617,7.61700227,161.62,161.61,2.74]
[1730792451517,12.98211752,161.64,161.61,2.74]
[1730792451922,7.61700227,161.63,161.61,2.74]
[1730792453012,12.98211752,161.64,161.61,5.8355]
[1730792453214,12.98211752,161.64,161.61,3.0955]
[1730792454822,12.98211752,161.64,161.6,2.78]
[1730792455525,12.98211752,161.64,161.6,5.4918]
[1730792455728,12.98211752,161.64,161.63,3.0951]
[1730792456124,12.98211752,161.64,161.63,14.98130803]
[1730792458223,10.85431752,161.64,161.63,14.98130803]
[1730792458425,6.59871752,161.64,161.63,14.98130803]
[1730792459317,0.29821752,161.64,161.63,14.98130803]
[1730792461336,0.34962,161.71,161.63,11.88620803]
[1730792461520,0.34962,161.71,161.68,11.88620803]
[1730792461718,0.34962,161.71,161.68,2.78]
[1730792462329,12.23582803,161.71,161.67,2.78]
[1730792462547,0.34962,161.71,161.66,2.78]
[1730792463225,0.34962,161.71,161.62,11.88620803]
[1730792463427,3.0939,161.7,161.65,2.78]
[1730792463730,0.34962,161.71,161.65,2.78]
[1730792464128,0.34962,161.71,161.65,5.8747]
[1730792464724,0.34962,161.71,161.65,2.78]
[1730792464924,0.34962,161.71,161.62,11.88620803]
[1730792465126,3.0942,161.68,161.63,2.78]
[1730792465733,0.34962,161.71,161.63,5.8751]
[1730792465734,3.0944,161.67,161.63,5.8751]
[1730792466137,12.23582803,161.71,161.64,3.0949]
[1730792466528,12.23582803,161.71,161.63,2.78]
[1730792466835,3.0943,161.68,161.63,5.8749]
[1730792467024,3.0943,161.68,161.63,2.78]
[1730792468235,3.0943,161.68,161.64,3.0949]
[1730792468633,0.34962,161.71,161.63,2.78]
[1730792468864,0.34962,161.71,161.68,3.0941]
[1730792469148,0.34962,161.71,161.68,2.78]
[1730792469534,0.34962,161.71,161.69,3.0938]
[1730792469836,0.34962,161.71,161.68,2.78]
[1730792470735,0.34962,161.71,161.7,3.0938]
[1730792471437,1.3968,161.75,161.7,3.0938]
[1730792471830,1.3968,161.75,161.68,2.78]
[1730792472028,4.4897,161.75,161.71,3.0936]
[1730792472436,3.0931,161.74,161.71,3.0936]
[1730792472827,3.0931,161.74,161.7,3.0937]
[1730792473234,3.0931,161.74,161.69,3.0938]
[1730792473435,3.0931,161.74,161.68,2.78]
[1730792473436,7.60884515,161.73,161.68,10.38884515]
[1730792474335,0.0823,161.76,161.68,10.38884515]
[1730792474535,7.60884515,161.75,161.7,7.60884515]
[1730792474736,0.43251,161.77,161.71,7.60884515]
[1730792474948,7.60884515,161.75,161.73,3.0932]
[1730792475134,7.60884515,161.74,161.68,2.78]
[1730792475349,7.60884515,161.74,161.69,7.60884515]
[1730792475934,7.60884515,161.74,161.71,3.0935]
[1730792476937,3.0928,161.76,161.72,3.0933]
[1730792477134,10.70164515,161.76,161.72,3.0933]
[1730792478238,3.0928,161.76,161.72,7.60884515]
[1730792478435,8.04135515,161.77,161.72,10.38884515]
[1730792479235,0.43251,161.77,161.73,7.60884515]
[1730792479648,0.43251,161.77,161.76,3.0926]
[1730792479944,0.43251,161.77,161.76,5.9926]
[1730792480538,0.43251,161.77,161.76,13.60144515]
[1730792482136,0.43251,161.77,161.76,10.50884515]
[1730792482744,0.43251,161.77,161.76,2.9]
[1730792483143,8.04135515,161.77,161.72,7.60884515]
[1730792483351,7.60884515,161.76,161.73,2.9]
[1730792483845,7.60884515,161.76,161.64,1.289]
[1730792483846,7.60884515,161.75,161.71,7.60884515]
[1730792485045,7.60884515,161.76,161.72,7.60884515]
[1730792485243,8.04135515,161.77,161.72,7.60884515]
[1730792485446,8.04135515,161.77,161.7,2.9]
[1730792485447,0.43251,161.77,161.7,14.78251181]
[1730792486244,0.43251,161.77,161.74,11.88251181]
[1730792486443,0.43251,161.77,161.74,14.78251181]
[1730792486636,0.43251,161.77,161.76,3.0926]
[1730792487349,1.292,161.82,161.76,3.0926]
[1730792487350,4.3836,161.82,161.76,3.0926]
[1730792487549,4.3836,161.82,161.77,3.0924]
[1730792489054,3.0907,161.87,161.82,3.0915]
[1730792489375,1.3646,161.88,161.81,11.88251181]
[1730792489750,13.24711181,161.88,161.79,13.20531181]
[1730792490249,0.59604,161.86,161.79,13.20531181]
[1730792490750,0.59604,161.86,161.81,3.0915]
[1730792490946,12.47855181,161.86,161.79,1.3228]
[1730792491151,12.47855181,161.86,161.78,4.2276]
[1730792491749,3.0909,161.85,161.79,3.092]
[1730792494360,12.47855181,161.86,161.81,14.97411181]
[1730792494361,0.59604,161.86,161.81,14.97411181]
[1730792494567,18.6,162.05,161.85,11.88251181]
[1730792494568,11.88251181,161.95,161.85,11.88251181]
[1730792494765,11.88251181,161.93,161.83,11.88251181]
[1730792494965,2.33237194,161.94,161.84,2.9]
[1730792494966,11.88251181,161.91,161.84,2.9]
[1730792495363,3.0904,161.88,161.84,5.991]
[1730792495873,3.0902,161.89,161.84,5.991]
[1730792496864,2.6608,161.94,161.84,2.9]
[1730792497079,11.88251181,161.92,161.84,2.9]
[1730792497393,3.0902,161.9,161.85,3.0908]
[1730792497664,1.2769,161.94,161.85,3.0908]
[1730792497665,11.88251181,161.92,161.85,3.0908]
[1730792497865,3.0901,161.9,161.85,3.0908]
[1730792498063,2.5788,161.94,161.84,2.9]
[1730792498265,11.88251181,161.93,161.84,2.9]
[1730792498863,3.0898,161.91,161.84,2.9]
[1730792499370,11.88251181,161.93,161.87,3.0905]
[1730792499573,3.0899,161.91,161.87,3.0905]
[1730792499872,11.88251181,161.93,161.84,2.9]
[1730792500072,3.0897,161.92,161.86,3.0906]
[1730792500273,3.0897,161.92,161.84,2.9]
[1730792500959,3.09,161.9,161.84,2.9]
[1730792501165,11.88251181,161.96,161.85,11.88251181]
[1730792501570,3.0894,161.94,161.85,11.88251181]
[1730792501965,3.0894,161.94,161.85,13.26921181]
[1730792502168,2.9,161.98,161.85,13.26921181]
[1730792502374,11.88251181,161.97,161.87,11.88251181]
[1730792502573,11.88251181,161.97,161.88,2.9]
[1730792502967,3.0894,161.94,161.88,2.9]
[1730792503365,3.0894,161.94,161.9,3.09]
[1730792503967,11.88251181,161.97,161.88,2.9]
[1730792504174,3.0895,161.93,161.89,3.0901]
[1730792504875,3.0895,161.93,161.9,3.09]
[1730792505076,3.0892,161.95,161.88,2.9]
[1730792505276,11.88251181,161.97,161.88,2.9]
[1730792505667,3.0895,161.93,161.89,3.09]
[1730792507665,3.0895,161.93,161.9,3.09]
[1730792509177,11.88251181,161.94,161.88,2.9]
[1730792509669,3.09,161.91,161.88,2.9]
[1730792510178,3.09,161.91,161.87,3.02]
[1730792511277,3.09,161.91,161.88,3.0903]
[1730792511980,3.0897,161.92,161.88,3.0903]
[1730792513076,11.88251181,161.94,161.87,3.02]
[1730792514278,11.88251181,161.94,161.86,4.4085]
[1730792514487,2.6772,161.99,161.86,4.4085]
[1730792514488,5.6972,161.99,161.87,11.88251181]
[1730792514783,3.0892,161.94,161.9,3.0898]
[1730792514979,3.0892,161.94,161.9,6.1098]
[1730792515279,3.0892,161.94,161.9,13.7084473]
[1730792515481,7.5986473,161.95,161.9,13.7084473]
[1730792515482,3.0895,161.93,161.9,13.7084473]
[1730792517175,3.0893,161.94,161.9,13.7084473]
[1730792517476,3.0893,161.94,161.9,6.1098]
[1730792518379,11.87253358,161.98,161.9,3.02]
[1730792518679,3.0895,161.93,161.9,3.02]
[1730792519582,3.0895,161.93,161.9,6.1099]
[1730792519888,11.87253358,161.98,161.9,3.02]
[1730792520073,11.87253358,161.96,161.89,3.02]
[1730792520277,1.2979,161.95,161.89,3.02]
[1730792520586,3.0897,161.92,161.88,6.1103]
[1730792520778,1.2979,161.95,161.88,3.02]
[1730792520981,3.0902,161.9,161.87,3.02]
[1730792522075,3.0898,161.91,161.87,6.1105]
[1730792522383,1.2979,161.95,161.87,3.02]
[1730792522586,3.0896,161.93,161.89,3.09]
[1730792523476,3.0896,161.92,161.89,3.09]
[1730792523684,3.0896,161.92,161.87,3.02]
[1730792523882,1.2979,161.95,161.88,3.0902]
[1730792524083,3.0897,161.92,161.88,3.0902]
[1730792524881,3.0901,161.9,161.87,3.02]
[1730792525086,1.2979,161.95,161.87,3.02]
[1730792525384,3.0897,161.92,161.87,3.02]
[1730792525979,3.0897,161.92,161.88,3.0903]
[1730792526685,3.0897,161.92,161.87,3.02]
[1730792526893,1.2979,161.95,161.88,11.87253358]
[1730792527294,1.2979,161.95,161.9,3.0899]
[1730792527591,1.2979,161.95,161.88,11.87253358]
[1730792527792,0.26104,162.01,161.87,3.02]
[1730792527793,12.13357358,162.01,161.92,11.87253358]
[1730792527994,3.0881,162.0,161.93,3.02]
[1730792528385,0.26104,162.01,161.96,3.0887]
[1730792528581,0.26104,162.01,161.93,3.02]
[1730792529184,3.0883,161.99,161.96,3.0888]
[1730792529392,3.0883,161.99,161.93,3.02]
[1730792529790,3.0883,161.99,161.92,11.87253358]
[1730792529791,12.13357358,162.01,161.94,3.02]
[1730792530188,11.87253358,161.99,161.91,3.0897]
[1730792530489,11.87253358,161.99,161.92,3.02]
[1730792530682,11.87253358,161.98,161.92,3.02]
[1730792532487,3.089,161.95,161.92,3.02]
[1730792534779,3.089,161.96,161.92,3.0896]
[1730792537393,3.0887,161.97,161.93,3.0893]
[1730792537578,11.87253358,162.0,161.91,3.02]
[1730792538183,11.87253358,161.98,161.91,3.02]
[1730792538895,3.0888,161.96,161.92,3.0895]
[1730792539095,3.0888,161.96,161.91,3.02]
[1730792539403,3.0893,161.94,161.9,13.72871932]
[1730792539597,7.59891932,161.95,161.9,10.63891932]
[1730792539892,3.0892,161.94,161.9,13.72881932]
[1730792540083,7.59891932,161.93,161.89,3.04]
[1730792541395,3.0895,161.93,161.89,6.13]
[1730792541695,14.91625671,161.98,161.89,3.04]
[1730792541898,14.91625671,161.98,161.9,3.0899]
[1730792542495,3.0891,161.95,161.91,3.0897]
[1730792542693,14.91625671,161.98,161.91,3.0897]
[1730792542997,14.91625671,161.98,161.89,3.04]
[1730792543397,14.91625671,161.98,161.9,3.0898]
[1730792543591,14.91625671,161.98,161.89,3.04]
[1730792543903,14.91625671,161.98,161.91,3.0898]
[1730792544092,1.3355,162.01,161.92,11.87625671]
[1730792544406,1.3355,162.01,161.98,3.0883]
[1730792544603,1.3355,162.01,161.95,3.04]
[1730792545198,13.21175671,162.01,161.95,3.04]
[1730792545398,1.3355,162.01,161.95,3.04]
[1730792545593,1.3355,162.01,161.91,11.87625671]
[1730792545594,3.0885,161.98,161.94,6.1291]
[1730792545794,3.0885,161.98,161.94,3.04]
[1730792546192,13.21175671,162.01,161.94,3.04]
[1730792546408,3.0884,161.99,161.95,3.0889]
[1730792546601,1.3355,162.01,161.94,3.04]
[1730792546993,3.0882,162.0,161.96,3.0887]
[1730792548401,1.3355,162.01,161.96,3.0887]
[1730792549599,1.3355,162.01,161.94,3.04]
[1730792549800,4.4234,162.01,161.98,3.0884]
[1730792551303,3.0883,161.99,161.96,3.0887]
[1730792552900,3.0881,162.0,161.96,3.0887]
[1730792553605,3.0887,161.97,161.94,3.0892]
[1730792553904,11.87625671,162.0,161.93,3.04]
[1730792554507,1.3355,162.01,161.93,3.04]
[1730792554700,3.0883,161.99,161.96,3.0888]
[1730792555503,3.0883,161.99,161.95,3.089]
[1730792556400,3.0885,161.98,161.95,3.089]
[1730792557500,1.3355,162.01,161.93,3.04]
[1730792558103,3.0882,162.0,161.96,3.0887]
[1730792558503,1.3355,162.01,161.96,3.0887]
[1730792559014,1.3355,162.01,161.94,3.04]
[1730792559700,3.0883,161.99,161.96,3.0887]
[1730792560299,1.3355,162.01,161.94,3.04]
[1730792560644,8.55757237,162.16,162.0,11.87625671]
[1730792560831,638.31310312,162.25,161.92,1.3101]
[1730792560832,2.718,162.14,162.01,3.44]
[1730792561013,12.93077012,162.13,162.04,11.87625671]
[1730792561224,1.05423103,162.12,162.04,11.87625671]
[1730792561531,3.0862,162.1,162.05,7.58509922]
[1730792561720,7.58509922,162.09,162.02,1.3568]
[1730792561918,7.58509922,162.09,162.04,7.58509922]
[1730792562314,2.718,162.14,162.06,7.58509922]
[1730792562611,7.58509922,162.1,162.05,7.58509922]
[1730792562810,7.99106922,162.09,162.05,7.58509922]
[1730792563316,0.40597,162.09,162.05,3.0871]
[1730792563809,3.0868,162.07,162.01,7.9677]
[1730792564013,3.0868,162.07,162.01,4.88]
[1730792564615,3.49247,162.09,162.03,3.0875]
[1730792565008,0.40597,162.09,162.0,17.31212474]
[1730792565317,0.40597,162.09,162.01,1.2867]
[1730792566232,0.40597,162.09,162.04,3.0871]
[1730792567330,0.40597,162.09,162.05,3.0871]
[1730792568232,0.40597,162.09,162.06,3.0869]
[1730792568731,0.40597,162.09,162.03,11.85212474]
[1730792569426,0.40597,162.09,162.04,3.0873]
[1730792569624,0.40597,162.09,162.01,14.49542474]
[1730792569827,0.40597,162.09,162.03,11.85212474]
[1730792570136,0.40597,162.09,162.05,3.0871]
[1730792570525,0.40597,162.09,162.03,11.85212474]
[1730792570834,3.49237,162.09,162.03,11.85212474]
[1730792571629,0.40597,162.09,162.03,11.85212474]
[1730792571829,0.40597,162.09,162.04,3.0873]
[1730792573131,0.40597,162.09,162.03,11.85212474]
[1730792573326,0.40597,162.09,162.03,14.93962474]
[1730792573523,3.49237,162.09,162.03,14.93962474]
[1730792573930,3.49237,162.09,162.04,3.0872]
[1730792575330,58.70892693,162.28,162.08,11.85212474]